Cogmind - Beta 17 @@@ ROGUE MODE // 2026.07.07 @ 03:12:41 Player: Venar246 Result: Destroyed by K9-87U(R) with Subdweller Beam Cannon Performance ------------- Evolutions (0) 0 Regions Visited (3) 600 Robots Destroyed (32) 160 Value Destroyed (807) 807 Prototype IDs (16) 320 Alien Tech Used (0) 0 Bonus (0) 0 TOTAL SCORE: 1887 Bonus ------- None Cogmind --------- Core Integrity 0/250 Matter 86/300 Energy 200/200 System Corruption 0% Temperature Cool (22) Movement Walking (190) Ox1 Location -10/Subcaves Parts ------- > --- POWER (1) -------- Subdweller Power Source > --- PROPULSION (2) --- Aluminum Leg Aluminum Leg > --- UTILITY (2) ------ Large Storage Unit Signal Interpreter > --- WEAPON (2) ------- Beam Cannon Battle Rifle > --- INVENTORY (15) --- High-capacity Matter Pod (200) Structural Scanner Terrain Scan Processor Targeting Computer ECM Suite Light Armor Plating Decoy Drone Bay Self-contained Transmogrifier Rainbow Chip Subdweller Laser Battle Cannon Peak State ------------ > --- POWER ------------ Subdweller Power Source > --- PROPULSION ------- Aluminum Leg Aluminum Leg > --- UTILITY ---------- Large Storage Unit Signal Interpreter > --- WEAPON ----------- Beam Cannon Battle Rifle > --- INVENTORY -------- Aluminum Leg High-capacity Matter Pod Structural Scanner Terrain Scan Processor Targeting Computer ECM Suite Light Armor Plating Decoy Drone Bay Self-contained Transmogrifier Rainbow Chip Subdweller Laser Battle Cannon [Rating: 13] Favorites ----------- Power Light Ion Engine Engine Light Ion Engine Propulsion Aluminum Leg Leg Aluminum Leg Utility Large Storage Unit Storage Large Storage Unit Processor Signal Interpreter Protection Light Armor Plating Weapon Light Cannon Energy Gun Subdweller Laser Energy Cannon Beam Cannon Ballistic Gun Battle Rifle Ballistic Cannon Light Cannon Build | -11 -10 -10 -10 ------- Run | Yrd Mat Min Sub Slots Evolved . | . . . . Power . | . . . . Propulsion . | . . . . Utility . | . . . . Weapon . | . . . . Parts Attached 20 | 6 6 1 7 Power 4 | 1 1 . 2 Engine 4 | 1 1 . 2 Core . | . . . . Reactor . | . . . . Propulsion 5 | 2 1 . 2 Treads . | . . . . Leg 5 | 2 1 . 2 Wheel . | . . . . Hover . | . . . . Flight . | . . . . Utility 4 | 1 2 1 . Device . | . . . . Storage 2 | 1 1 . . Processor 1 | . . 1 . Hackware . | . . . . Protection 1 | . 1 . . Artifact . | . . . . Weapon 7 | 2 2 . 3 Energy Gun 1 | . . . 1 Energy Cannon 1 | . . . 1 Ballistic Gun 3 | 2 . . 1 Ballistic Cannon 2 | . 2 . . Launcher . | . . . . Special Weapon . | . . . . Impact Weapon . | . . . . Slashing Weapon . | . . . . Piercing Weapon . | . . . . Special Melee Weapon . | . . . . Unidentified Prototypes . | . . . . Parts Lost 7 | . . . 7 Power 2 | . . . 2 Propulsion 3 | . . . 3 Utility . | . . . . Weapon 2 | . . . 2 Highest Loss Streak 3 | . . . 3 To Critical Strikes . | . . . . Average Backups 9 | . 7 9 9 Power . | . 1 1 . Propulsion 1 | . . 2 1 Utility 6 | . 3 4 7 Weapon 1 | . 3 2 . Tool/Special . | . . . . Unused Backups 11 | . 2 . 9 Power . | . . . . Propulsion . | . . . . Utility 8 | . 1 . 7 Weapon 2 | . 1 . 1 Tool/Special 1 | . . . 1 Average Slot Usage (%) 95 | . 98 100 92 Engine 9 | . 14 14 7 Leg 27 | . 28 28 27 Storage 14 | . 14 14 14 Processor 11 | . . 13 14 Protection 1 | . 12 . . Energy Gun 4 | . . . 6 Energy Cannon 7 | . . . 11 Ballistic Gun 3 | . 1 . 5 Ballistic Cannon 12 | . 26 28 4 Peak Build Rating 13 | 6 7 9 13 Average Rating 9 | 4 6 8 9 On Entrance 5 | . 6 7 9 Avg Prop Armor Cover (%) . | . . . . Naked Turns . | . . . . Heaviest Build 32 | 10 32 32 30 Greatest Support 20 | 20 20 20 20 Greatest Overweight (x) 2 | . 1 1 2 Average Overweight (x) . | . . 1 1 Largest Inventory Capacity 15 | 8 15 15 15 Average Capacity 14 | 7 8 15 15 Most Carried 13 | 2 8 13 13 Average Carried 10 | . 7 10 10 Final Capacity 15 | 8 15 15 15 Final Carried 13 | 2 8 13 12 Class Distribution -------------------- 100% | Mutant Dominant Class ---------------- Mutant | -10/Materials Mutant | -10/Mines Mutant | -10/Subcaves Resources | -11 -10 -10 -10 ----------- Run | Yrd Mat Min Sub Matter Collected 890 | 194 192 318 186 Remotely . | . . . . Salvage Created 755 | . 432 119 204 Parts 46 | . 25 10 11 Haulers Intercepted 1 | . 1 . . Recyclers Shooed . | . . . . Parts Field Recycled . | . . . . Retrieved Matter . | . . . . Parts Self-Destructed 10 | . . . 10 Prevented . | . . . . Parts Restored . | . . . . Kills | -11 -10 -10 -10 ------- Run | Yrd Mat Min Sub Combat Hostiles Destroyed 24 | . 10 5 9 Cannons 24 | . 10 5 9 Classes Destroyed 8 | . 5 . 3 Hauler 1 | . 1 . . Recycler 3 | . 3 . . Operator 2 | . 2 . . Turret 2 | . . . 2 Swarmer 10 | . 3 3 4 Grunt 11 | . 7 2 2 Sentry 1 | . . . 1 Subdweller 2 | . . . 2 Best Kill Streak 8 | . 8 3 3 Combat Bots Only 4 | . 4 3 3 Max Kills in Single Turn 4 | . 4 1 1 Gunslinging . | . . . . Exploded . | . . . . Melee . | . . . . Uniques/NPCs Destroyed . | . . . . Combat | -11 -10 -10 -10 -------- Run | Yrd Mat Min Sub Hostile Shots Fired 170 | . 30 13 127 Missed 70 | . 7 4 59 Hits 100 | . 23 9 68 Projectile 100 | . 23 9 68 Critical Strikes 1 | . . . 1 Damage Taken 1248 | . 252 80 916 Core 254 | . 15 39 200 Absorbed by Shields . | . . . . Core Remaining (%) 100 | 100 . . . Volleys Fired 166 | . 19 7 140 Largest 2 | . 2 2 2 Hottest 120 | . 60 60 120 Shots Fired 288 | . 38 14 236 Gun 82 | . . . 82 Cannon 206 | . 38 14 154 Launcher . | . . . . Special . | . . . . Kinetic 153 | . 38 14 101 Thermal 135 | . . . 135 Explosive . | . . . . Electromagnetic . | . . . . Robot Hit Streak 13 | . 6 5 13 Robot Miss Streak 4 | . 3 4 3 Penetration Max . | . . . . Secondary Targets . | . . . . Shots Hit Robots 73 | . 20 5 48 Core Hits 34 | . 12 7 15 Critical Kills . | . . . . Critical Parts Destroyed . | . . . . Critical Strikes 3 | . 2 . 1 Blast 3 | . 2 . 1 Melee Attacks . | . . . . Impact . | . . . . Slashing . | . . . . Piercing . | . . . . Sneak Attacks . | . . . . Combat Hostiles . | . . . . Follow-up Attacks . | . . . . Damage Inflicted 1698 | . 732 102 864 Guns 111 | . . . 111 Cannons 1197 | . 353 91 753 Explosions 366 | . 366 . . Melee . | . . . . Ramming 24 | . 13 11 . Kinetic 875 | . 353 91 431 Thermal 799 | . 366 . 433 Explosive . | . . . . Electromagnetic . | . . . . Impact . | . . . . Slashing . | . . . . Piercing . | . . . . Highest Corruption . | . . . . Average Corruption . | . . . . Corruption Purged . | . . . . Corruption Blocked . | . . . . Overload Shots . | . . . . Overflow Damage 291 | . 276 . 15 Projectiles 15 | . . . 15 Explosions 276 | . 276 . . Melee . | . . . . Knockbacks 3 | . 1 . 2 Impact . | . . . . Kinetic 3 | . 1 . 2 Secondary . | . . . . Self-Inflicted Damage 61 | . 61 . . Shots 1 | . 1 . . Rammed . | . . . . Targets Rammed 8 | . 4 4 . Kicked 8 | . 4 4 . Crushed . | . . . . Highest Temperature 63 | . 63 18 42 Average Temperature 20 | . 20 15 21 Received Heat Transfer 351 | . 18 18 315 Siege Activations . | . . . . Martial Activations . | . . . . Shielding Activations . | . . . . Robots Disrupted . | . . . . Combat Hostiles . | . . . . Robots Corrupted . | . . . . Combat Hostiles . | . . . . Parts Fried . | . . . . Impact Corruptions . | . . . . Robots Melted . | . . . . Combat Hostiles . | . . . . Parts Melted 1 | . 1 . . Heat Transferred 1040 | . 200 . 840 Parts Sabotaged . | . . . . Parts Stolen . | . . . . Parts Stripped . | . . . . Power Chain Reactions . | . . . . Alert | -11 -10 -10 -10 ------- Run | Yrd Mat Min Sub Maximum Alert Level 1 | . 1 . . Low Security (%) 94 | 100 85 100 . Level 1 5 | . 14 . . Level 2 . | . . . . Level 3 . | . . . . Level 4 . | . . . . Level 5 . | . . . . High Security . | . . . . Max Security . | . . . . Peak Influence 229 | . 229 108 . Initial 76 | . . 76 . Average 33 | . 59 21 . Influence Increases 801 | . 416 135 250 Destroy 0b10 Robot/C 480 | . 200 100 180 Destroy 0b10 Robot/NC 30 | . 30 . . Destroy Leader 82 | . 52 20 10 Successful Hack 5 | . 5 . . Disable Machine 105 | . 105 . . Destroy Structure 24 | . 24 . . Lose Combat Pursuer 75 | . . 15 60 Influence Decreases 801 | . 219 272 310 Entered New Map 153 | . . 121 32 Time Decay 608 | . 219 151 238 Lost Part 40 | . . . 40 Squads Dispatched 4 | . 4 . . Investigation 1 | . 1 . . Extermination . | . . . . Reinforcement 3 | . 3 . . Assault . | . . . . Garrison . | . . . . Intercept . | . . . . Searches Triggered . | . . . . Construction Impeded . | . . . . Haulers Reinforced . | . . . . Active Scanning Responses . | . . . . Cargo Convoy Interrupts . | . . . . Stealth | -11 -10 -10 -10 --------- Run | Yrd Mat Min Sub Distress Signals 2 | . . 2 . Communications Jammed . | . . . . Distress Signals . | . . . . Times Spotted 35 | . 16 7 12 Peak Tracking Total 5 | . 5 3 5 Tactical Retreats 3 | . . 1 2 Traps | -11 -10 -10 -10 ------- Run | Yrd Mat Min Sub Traps Triggered 3 | . 1 . 2 Indirectly . | . . . . Trap Hack Attempts . | . . . . Triggered . | . . . . Disarmed . | . . . . Reprogrammed . | . . . . Reused . | . . . . Traps Extracted . | . . . . Installed . | . . . . Triggered . | . . . . Machines | -11 -10 -10 -10 ---------- Run | Yrd Mat Min Sub Machines Disabled 8 | . 7 . 1 Max in Single Turn 6 | . 6 . 1 Machines Repaired . | . . . . Machines Dismantled . | . . . . Machines Sabotaged . | . . . . Overloaded Fab Kills . | . . . . Hacking | -11 -10 -10 -10 --------- Run | Yrd Mat Min Sub Machines Accessed 4 | . 1 1 2 Terminals 1 | . 1 . . Fabricators . | . . . . Repair Stations . | . . . . Recycling Units . | . . . . Scanalyzers . | . . . . Garrison Access . | . . . . Total Hacks 19 | . 4 1 14 Successful 16 | . 1 1 14 Failed 3 | . 3 . . Catastrophic . | . . . . Database Lockouts . | . . . . Manual . | . . . . Terminals 4 | . 4 . . Fabricators . | . . . . Repair Stations . | . . . . Recycling Units . | . . . . Scanalyzers . | . . . . Garrison Access . | . . . . Terminal Hacks 16 | . 1 1 14 Record 13 | . . . 13 Prototype ID Bank 1 | . 1 . . Open Door 1 | . . 1 . Proto ID Catalog 1 | . . . 1 Fabricator Hacks . | . . . . Repair Station Hacks . | . . . . Recycling Unit Hacks . | . . . . Scanalyzer . | . . . . Garrison Access Hacks . | . . . . Unauthorized Hacks . | . . . . Terminals . | . . . . Fabricators . | . . . . Repair Stations . | . . . . Recycling Units . | . . . . Scanalyzers . | . . . . Garrison Access . | . . . . Data Cores Recovered . | . . . . Used . | . . . . Hacking Detections 1 | . 1 . . Full Trace Events . | . . . . Feedback Events . | . . . . Feedback Blocked . | . . . . Robot Schematics Acquired . | . . . . Robots Built . | . . . . Authchips . | . . . . Time . | . . . . Total Robot Build Rating . | . . . . Part Schematics Acquired . | . . . . Parts Built . | . . . . Authchips . | . . . . Time . | . . . . Total Part Build Rating . | . . . . Part Studies Acquired . | . . . . Parts Repaired . | . . . . Time . | . . . . Parts Recycled . | . . . . Recycled Matter . | . . . . Retrieved Matter . | . . . . Retrieved Components . | . . . . Parts Scanalyzed . | . . . . Part Schematics Acquired . | . . . . Parts Damaged . | . . . . Bothacking | -11 -10 -10 -10 ------------ Run | Yrd Mat Min Sub Used RIF Installer . | . . . . Robots Hacked . | . . . . Non-combat . | . . . . Combat . | . . . . Robot Hacks Applied . | . . . . Relay Couplers Released . | . . . . Fabnet Peak Effective % . | . . . . Robots Rewired . | . . . . Allies Hacked . | . . . . Hacks Repelled . | . . . . Allies | -11 -10 -10 -10 -------- Run | Yrd Mat Min Sub Total Allies . | . . . . Largest Group . | . . . . Highest-Rated Group . | . . . . Highest-Rated Ally . | . . . . Total Orders . | . . . . Ally Attacks . | . . . . Total Damage . | . . . . Kills . | . . . . Allies Corrupted . | . . . . Allies Melted . | . . . . Intel | -11 -10 -10 -10 ------- Run | Yrd Mat Min Sub Active Infowar (turns) . | . . . . Robot Analysis Total . | . . . . Derelict Logs Recovered . | . . . . Drone Launches . | . . . . Drone Recoveries . | . . . . Exploration | -11 -10 -10 -10 ------------- Run | Yrd Mat Min Sub Turns Passed 4389 | 74 555 983 2777 Spaces Moved 2180 | 58 372 497 1253 Core 9 | 9 . . . Treads . | . . . . Legs 2171 | 49 372 497 1253 Wheels . | . . . . Hover . | . . . . Flight . | . . . . Fastest Speed 50 | 50 120 190 190 Average Speed 176 | 109 123 190 190 Slowest Speed 260 | 120 190 190 260 Overloaded Moves . | . . . . Propulsion Burnouts . | . . . . Robots Hopped . | . . . . Potential Cave-ins . | . . . . Cave-ins Triggered . | . . . . Exploration Rate (%) 60 | 3 57 96 84 Regions Visited 3 Branch Regions 2 Pre-discovered Areas 1 | . . . 1 Known Exits Taken 1 | . . 1 . Unknown Exits Taken 2 | 1 1 . . Scrap Searched 1 | . . 1 . Spaces Dug . | . . . . Terrain Destroyed 24 | . 24 . . Melee . | . . . . Projectile . | . . . . AOE 24 | . 24 . . Terrain Rammed . | . . . . Walls Destroyed . | . . . . Machines Disabled . | . . . . Actions | -11 -10 -10 -10 --------- Run | Yrd Mat Min Sub Total 2423 | 65 429 519 1410 Wait 23 | . 15 5 3 Move 2177 | 57 371 496 1253 Hop . | . . . . Pick Up 20 | 2 9 5 4 Fast Attach 8 | 6 1 . 1 Attach 7 | . . 1 6 Detach . | . . . . Swap 8 | . 5 . 3 Drop 6 | . 5 1 . Fire 166 | . 19 7 140 Melee . | . . . . Ram . | . . . . Kick 8 | . 4 4 . Crush . | . . . . Escape Stasis . | . . . . Rewire . | . . . . Trap . | . . . . Miscellaneous . | . . . . Route ------- -11/Scrapyard -10/Materials (discovered 2 exits: *Mat / *Min) -10/Mines (discovered 3 exits: *Mat x2 / *Sub) -10/Subcaves (discovered 3 exits: *Mat x2 / *Rec) History --------- Turn | Location | Event 6 | -11/Scrapyard | Discovered new exit (range 15) 75 | -11/Scrapyard | Entered Materials 260 | -10/Materials | Discovered new exit (range 9) 302 | -10/Materials | Build established: Mutant 526 | -10/Materials | Discovered new exit (range 11) 630 | -10/Materials | Entered Mines 643 | -10/Mines | Found the Drone Emporium 653 | -10/Mines | Found Prototype Device 683 | -10/Mines | Discovered new exit (range 6) 698 | -10/Mines | Identified exit to Materials 793 | -10/Mines | Discovered exit to Materials (range 11) 826 | -10/Mines | Assembled infested the area 1594 | -10/Mines | Discovered new exit (range 9) 1611 | -10/Mines | Identified exit to Subcaves 1613 | -10/Mines | Entered Subcaves 2100 | -10/Subcaves | Visited Clippyterm 2106 | -10/Subcaves | Learned location of Deep Caves (-7) 2106 | -10/Subcaves | Learned 40 Factory zone layouts 2137 | -10/Subcaves | Shifting Twisted Machinery released Shrapnel Trap 2159 | -10/Subcaves | Discovered new exit (range 11) 2166 | -10/Subcaves | Shifting Twisted Machinery released Sub. Optics 2178 | -10/Subcaves | Identified exit to Materials 2210 | -10/Subcaves | Shifting Twisted Machinery released Shrapnel Trap 2816 | -10/Subcaves | Core integrity fell below 50% 2927 | -10/Subcaves | Core integrity fell below 20% 2934 | -10/Subcaves | Discovered new exit (range 15) 2941 | -10/Subcaves | Lost 3 parts (1p2n) 2958 | -10/Subcaves | Identified exit to Recycling 3201 | -10/Subcaves | Discovered exit to Materials (range 11) 3325 | -10/Subcaves | Shifting Twisted Machinery released Battle Rifle 3762 | -10/Subcaves | Visited 4L-MR0's lab 3772 | -10/Subcaves | Found Prototype Device 3801 | -10/Subcaves | Found Rainbow Chip 4390 | -10/Subcaves | Destroyed by K9-87U(R) with Subdweller Beam Cannon Last Messages --------------- fighting for the freedom of Derelicts everywhere. And definitely doing it in style. I must say I hope some of my less welcome recent visitors run into him sometime. >>Record "Tripod Weapons Platform" 7R-MNS was supposed to bring back the platform for more tweaks after testing it for a bit. No idea where they're off to now... 03794_ Testing Chamber breached. 03801_ Acquired Rainbow Chip. 04024_ HB-8D3(u) tweaks Twisted Machinery. 04066_ Acquired Battle Cannon. 04168_ Acquired Sub. Power Source. 04334_ Triggered Piercing Trap. 04334_ Spikes shoot up from the floor. 04334_ Critical hit (Impale). 04334_ Aluminum Leg destroyed. 04344_ Triggered Shrapnel Trap. 04344_ An expanding cloud of shrapnel blasts out in all directions. Map ----- +----------------------------------------------------+ | #####??????????????????????### " ?? ### ###????? | | # ###???##??????###?????## ??? ????## | | #??# ##?????# ##???## #???# ???## | | ### #?????# ##??# ##??# ????# | | ### #????## ##?# ??## ###### | | ## #????# #?# ???# ## # | | #???## #?# ????# | | #####?### ### #?# #????## " | | ##????## #?###?# #??### ## #""" | | # ##??#### #??????# #### #####"" | | # #??## ######## ## ##"" | | #?## # ## ## " | | ##### ##?# | | #?## ##???# # | | ### # ## # ###?????###### | | ### ## ###### # ###????????????? | | ### ### #????# ## ##?????????????? | | ## ##?# #???## # #???????#?????? | | ## ##?# ##????# ## ##?##### # #?? | | #?## #?????## # #?# ????? | | ##??# #????# ## ## #????????? | | #???#########????## ##??????? | | ## #???????????????## ##??????? | | # #### ##?????????????### #??????? | | ###??####?????????#< ##< #??????? | | ????????????????????# R @ ### ## #??????# | | ????????????????????##<#<"# #?# ##??#??????# | | ?????????????????????#?#""#" ### ####??????????# | | ??????????????????????#"""""###"" ###?????####### | | ??????????????????????####""#?# " ""####### | | ?????????????????????????#" #?## " """"## ^ | | ??????????????????????????###?#""" | | ?????????????????????????????#""""#"" | | ????????????????????????????# "# "" | | ??????????????????????????? ### "" "#### | | ??????????????????????????# #??#######??##### | | ??????????????????????????# ###????????????????## | | ??????????????????????????###????????????????##### | | ?????????????????????????????????????????????# | | ?????????????????????????????????????????????# | | ?????????????????????????????????????????????# | | ?????????????????????????????????????????????# # | | ?????????????????????????????????????????????## # | | ??????????????????????????????????????????????# # | | ?????????????????????????????????????????????## | | ?????????????????????????????????????????????# | | ?????????????????????????????????????????????## | | ??????????????????????????????????????????????# | | ?????????????????????????????????????????????## | | ?????????????????????????????????????????????# | +----------------------------------------------------+ Best States ------------- Heat Dissipation 25 Energy Generation 15 Energy Capacity 200 Matter Stores 300 Matter Capacity 300 Sight Range 16 Terrain Scan Density 10 Armor Coverage 150 Evasion (%) 55 Item Schematics ----------------- None Robot Schematics ------------------ None Fabricated ------------ Nothing Repaired ---------- Nothing Studied --------- None Alien Tech Used ----------------- None Achievements -------------- None Challenges ------------ None Game ------ Seed BottomlessGammaLance Manual? 0 Play Time 00:17:34 Cumulative 51.4 hours Start 2026.07.07 @ 02:56:28 End 2026.07.07 @ 03:12:41 Sessions 1 Manual Loads 0 Difficulty Rogue Special Mode None Game No. 93 Rogue 93 Adventurer 0 Explorer 0 Win Type - Total 1 Types 1/0/0/0/0/0/0/0/0/0 Lore% 27 Gallery% 35 Achievement% 26 Wizard Run 0 Options --------- Layout 1 ASCII 0 Keyboard 0 Movement Arrows Keybinds 0 Fullscreen 1 Font 32/SmallcapsGlow Map View 50x35 Zoom Use 0% Tactical HUD 1 Map Filters NONE Filters NONE Steam 1 RUN: e2cca296-ec89-4a77-95e3-21568e68cc15